[Event "Icelandic Championship 2024"]
[Site "Mosfellsbaer"]
[Date "2024.04.19"]
[Round "4.4"]
[White "Domalchuk-Jonasson, Aleksandr"]
[Black "Ragnarsson, Dagur"]
[Result "1/2-1/2"]
[ECO "A28"]
[WhiteElo "2368"]
[BlackElo "2333"]
[Annotator "TA"]
[PlyCount "119"]
[EventDate "2024.04.16"]
[EventType "tourn"]
[EventCountry "ISL"]
[SourceTitle "playchess.com"]
[Source "ChessBase"]
[SourceQuality "1"]
[TimeControl "40/5400+30:1800+30"]

{[%evp 11,119,0,0,0,0,-15,0,0,0,0,0,0,0,0,0,0,26,-24,-9,-11,-8,-29,-30,-27,-37,-18,-30,-37,-43,-49,-45,-36,-43,-45,-14,-16,0,-6,-7,-4,9,10,10,10,10,0,0,0,0,0,41,9,19,20,16,19,19,22,22,22,28,39,53,0,19,0,54,54,79,8,8,0,0,0,0,0,0,0,0,0,0,0,0,-20,0,0,0,0,0,0,0,0,0,0,0,0,0,-8,0,-8,-8,-31,-31,-31,-31,-31,-31,-31,-31,-31]} 1. c4 {[%emt 0:00:05]} Nf6 {[%emt 0:01:48]} 2. Nc3 {[%emt 0:00:17]} e5 {[%emt 0:00:12]} 3. Nf3 {[%emt 0:00:26]} Nc6 {[%emt 0:00:57]} 4. e3 {[%emt 0:00:17]} Bb4 {[%emt 0:00:42]} 5. Qc2 {[%emt 0:00:13]} Bxc3 {[%emt 0:00:13]} 6. bxc3 {[%emt 0:00:34]} O-O {[%emt 0:01:06]} 7. e4 {[%emt 0:00:09]} d6 {[%emt 0:00:42]} 8. g3 {[%emt 0:00:18]} h6 {[%emt 0:03:52]} 9. Bg2 {[%emt 0:02:03] The position is equal.} Nh7 {[%emt 0:09:46]} 10. Nh4 {[%emt 0:03:01]} Be6 {[%emt 0:08:03]} 11. d3 {[%emt 0:00:54]} Ne7 {[%emt 0:04:27]} 12. Rb1 {[%emt 0:07:00]} b6 {[%emt 0:04:17]} 13. O-O {[%emt 0:11:40]} g5 {[%emt 0:00:20] [#]} 14. Nf5 {[%emt 0:00:52]} Nxf5 $11 {[%emt 0:00:06]} 15. exf5 {[%emt 0:00:05]} Bxf5 {[%emt 0:00:05]} 16. f4 {[%emt 0:11:48]} exf4 {[%emt 0:00:09]} 17. gxf4 {[%emt 0:00:04] [#]} g4 {[%emt 0:00:06]} 18. Bxa8 {[%emt 0:00:39]} Qxa8 {[%emt 0:00:05]} 19. Be3 {[%emt 0:09:14]} Re8 {[%emt 0:04:55][%mdl 1024] Black has compensation.} 20. Rbe1 {[%emt 0:02:34] White is weak on the light squares} Nf8 {[%emt 0:00:57]} 21. Qd2 {[%emt 0:09:39]} Ng6 {[%emt 0:10:56]} 22. Bf2 {[%emt 0:00:23] Repels Nh4} Re6 {[%emt 0:00:31][%cal Of5d3] White should prevent ...Bxd3!} 23. d4 $1 {[%emt 0:22:28]} Qf3 {[%emt 0:07:14]} 24. Bg3 {[%emt 0:00:46]} Rxe1 {[%emt 0:02:22]} 25. Rxe1 {[%emt 0:02:10]} Be4 {[%emt 0:14:10] ( -> ...Qh1+)} 26. Qe2 {[%emt 0:00:32]} Qxe2 {[%emt 0:01:57]} (26... Nxf4 $2 {is the wrong capture.} 27. Bxf4 (27. Qxe4 $2 Nh3#) 27... Qxf4 28. Qxe4 $18) ({But not} 26... Qh1+ 27. Kf2 Qg2+ 28. Ke3 Qxe2+ 29. Rxe2 $16) 27. Rxe2 {[%emt 0:00:03][%mdl 4096] Endgame. KRB-KBN} f5 {[%emt 0:00:05] [#]} 28. h3 $1 {[%emt 0:04:12]} gxh3 {[%emt 0:09:19]} 29. Kh2 {[%emt 0:01:56]} Kf7 {[%emt 0:00:36]} 30. c5 {[%emt 0:04:03]} b5 {[%emt 0:08:43]} 31. Kxh3 {[%emt 0:01:19]} Ke6 {[%emt 0:00:18]} 32. cxd6 {[%emt 0:03:34]} cxd6 {[%emt 0:00:09] [#]} 33. a4 $1 {[%emt 0:01:26]} a6 {[%emt 0:00:51]} ({Of course not} 33... bxa4 34. c4 $16) 34. axb5 {[%emt 0:01:43]} axb5 {[%emt 0:00:20]} 35. Rb2 {[%emt 0:00:26]} Bc6 {[%emt 0:01:38]} 36. Ra2 {[%emt 0:00:13]} Be4 {[%emt 0:02:07]} 37. Rb2 {[%emt 0:00:19]} Bc6 {[%emt 0:00:09]} 38. Ra2 {[%emt 0:00:06]} Be4 {[%emt 0:00:05]} 39. Ra5 {[%emt 0:01:52]} Bd3 {[%emt 0:00:16]} 40. Kg2 {[%emt 0:00:23]} (40. Ra7 $16) 40... h5 {[%emt 0:03:44]} 41. Kf3 {[%emt 0:07:43]} h4 {[%emt 0:04:30]} 42. Bh2 {[%emt 0:02:24]} Ne7 {[%emt 0:04:46]} 43. Ke3 {[%emt 0:05:11]} Bc4 {[%emt 0:00:35]} 44. Ra7 {[%emt 0:01:03]} Nd5+ {[%emt 0:00:18]} 45. Kd2 {[%emt 0:00:05]} Nf6 {[%emt 0:00:27] Dodges Rh7} 46. Bg1 {[%emt 0:01:44]} h3 {[%emt 0:01:09]} 47. Ke1 {[%emt 0:02:42]} Bd5 {[%emt 0:05:12]} 48. Rg7 {[%emt 0:09:18]} Bg2 {[%emt 0:00:27]} 49. Rg6 {[%emt 0:00:33]} Kf7 {[%emt 0:00:29]} 50. Rg5 {[%emt 0:00:18]} Ke6 {[%emt 0:00:46]} 51. Rg6 {[%emt 0:00:02]} Bf3 {[%emt 0:06:49]} 52. Kf2 {[%emt 0:03:23]} Bh5 {[%emt 0:00:29]} 53. Rh6 {[%emt 0:01:33]} Kf7 {[%emt 0:01:10] Hoping for ...Ng4+.} 54. Kg3 {[%emt 0:00:47]} Bg4 {[%emt 0:06:00]} 55. Rxf6+ {[%emt 0:00:41]} Kxf6 {[%emt 0:00:05]} 56. d5 {[%emt 0:00:02]} Ke7 {[%emt 0:00:17] Black is slightly better.} 57. Bb6 {[%emt 0:00:37]} Kd7 {[%emt 0:00:23]} 58. Ba5 {[%emt 0:00:10]} Bh5 {[%emt 0:01:20]} 59. Kxh3 {[%emt 0:00:05]} Bf7 {[%emt 0:00:05]} 60. Kg3 {[%emt 0:00:03] Weighted Error Value: White=0.08 (flawless) /Black=0.05 (flawless) .  Mistake:       	White=2     	---        Inaccurate:     	White=2     	Black=3      OK:         	White=25    	Black=27     Best:        	White=2     	Black=2      Strong:       	White=1     	---} 1/2-1/2

[Event "Icelandic Championship 2024"]
[Site "Mosfellsbaer"]
[Date "2024.04.19"]
[Round "4.5"]
[White "Kjartansson, Gudmundur"]
[Black "Ptacnikova, Lenka"]
[Result "1/2-1/2"]
[ECO "C54"]
[WhiteElo "2480"]
[BlackElo "2127"]
[Annotator "TA"]
[PlyCount "72"]
[EventDate "2024.04.16"]
[EventType "tourn"]
[EventCountry "ISL"]
[SourceTitle "playchess.com"]
[Source "ChessBase"]
[SourceQuality "1"]
[TimeControl "40/5400+30:1800+30"]

{[%evp 10,72,13,16,15,1,4,0,0,0,0,0,16,0,19,12,11,6,7,8,8,0,0,0,24,0,0,-20,-20,-22,0,0,0,-22,-22,-8,-15,-15,-18,-19,-20,-15,-16,-234,-220,-231,-225,-234,-219,-257,-245,-261,-262,-285,-273,-249,-160,-212,-210,-185,0,-118,0,-195,0]} 1. e4 {[%emt 0:00:05]} e5 {[%emt 0:00:15]} 2. Nf3 {[%emt 0:00:09]} Nc6 {[%emt 0:00:07]} 3. Bc4 {[%emt 0:01:20]} Nf6 {[%emt 0:00:05]} 4. d3 {[%emt 0:00:16]} Bc5 {[%emt 0:00:27]} 5. c3 {[%emt 0:01:19]} d6 {[%emt 0:00:26]} 6. Nbd2 {[%emt 0:01:48]} a5 {[%emt 0:00:43]} 7. a4 {[%emt 0:01:03]} Ba7 {[%emt 0:05:37]} 8. Nf1 {[%emt 0:04:05]} Be6 {[%emt 0:05:19] The position is equal.} 9. Bxe6 {[%emt 0:11:04]} fxe6 {[%emt 0:00:13]} 10. Ng3 {[%emt 0:01:07]} O-O {[%emt 0:01:50]} 11. O-O {[%emt 0:00:30]} h6 {[%emt 0:09:04]} 12. Re1 {[%emt 0:07:16]} Qe8 {[%emt 0:17:41]} 13. Be3 {[%emt 0:05:17]} Bxe3 {[%emt 0:04:19]} 14. Rxe3 {[%emt 0:00:08]} Rf7 {[%emt 0:03:54]} 15. d4 {[%emt 0:01:38]} exd4 {[%emt 0:00:25]} 16. cxd4 {[%emt 0:00:57]} e5 {[%emt 0:08:03]} 17. d5 {[%emt 0:14:57]} Nb4 {[%emt 0:00:11][%cal Bc6b4,Bb4a6,Ba6c5][%mdl 32]} 18. Nh4 {[%emt 0:05:09]} Kh7 {[%emt 0:00:16]} 19. Rc1 {[%emt 0:04:06]} Na6 {[%emt 0:00:26]} 20. b3 {[%emt 0:09:32]} Nc5 {[%emt 0:01:26]} 21. Qe2 {[%emt 0:11:25] [#]} b5 $1 {[%emt 0:00:36]} 22. axb5 {[%emt 0:01:43]} Rb8 {[%emt 0:00:04]} 23. Nf3 {[%emt 0:01:54]} Qxb5 {[%emt 0:02:06]} 24. Qxb5 {[%emt 0:01:29]} Rxb5 {[%emt 0:00:04]} 25. Nd2 {[%emt 0:00:33]} Ng4 {[%emt 0:06:07][%csl LRe3,LRf2]} 26. Rf3 {[%emt 0:00:55]} (26. Re2 $1 $11) 26... Rxf3 $19 {[%emt 0:01:01]} 27. gxf3 {[%emt 0:00:04] [#]} Nxf2 {[%emt 0:01:26][%mdl 512]} 28. Kf1 {[%emt 0:02:53]} (28. Kxf2 $2 Nd3+ (28... Nxb3 $2 29. Nxb3 Rxb3 30. Rxc7 $18) 29. Ke3 Nxc1 $19) (28. Rb1 Nh3+) 28... Nfd3 {[%emt 0:01:01]} (28... Nxb3 $2 {is the wrong capture.} 29. Nxb3 (29. Rxc7 Nxd2+ 30. Kxf2 a4 $11) 29... Nd3 30. Rc3 $18) 29. Rc3 {[%emt 0:00:57]} Nf4 {[%emt 0:03:56]} 30. Nf5 {[%emt 0:03:11]} Kg6 {[%emt 0:03:08][%cal Of4d5]} 31. Ne7+ {[%emt 0:00:21]} Kf6 {[%emt 0:00:38]} 32. Nc6 {[%emt 0:00:15]} Ng6 {[%emt 0:02:47]} 33. Na7 {[%emt 0:05:31] [#]} (33. Ke2 $17 {was necessary.}) 33... Rb7 $1 {[%emt 0:00:52]} 34. Nc6 {[%emt 0:00:02]} Rb5 {[%emt 0:00:08]} (34... a4 $19 {[%cal Rc5b3]} 35. bxa4 Rb2 (35... Nxa4 36. Ra3 $17)) 35. Na7 $17 {[%emt 0:00:03]} Rb7 {[%emt 0:13:52]} (35... Rb6 $17 36. Nc6 Rb5) 36. Nc6 $19 {[%emt 0:00:05] [#]} Rb5 $2 {[%emt 0:01:39] Weighted Error Value: White=0.16 (very precise) /Black=0.18 (very precise) .  Loses game:     	White=1     	---        Missed win:     	---       	Black=1      Mistake:       	White=1     	Black=2      Inaccurate:     	---       	Black=1      OK:         	White=8     	Black=11     Best:        	White=2     	Black=1      Strong:       	---       	Black=1      Brilliant:      	---       	Black=1} (36... a4 $1 $19 37. bxa4 Rb2 (37... Nxa4 38. Ra3 $17)) 1/2-1/2

[Event "Icelandic Championship 2024"]
[Site "Mosfellsbaer"]
[Date "2024.04.19"]
[Round "4.6"]
[White "Stefansson, Vignir Vatnar"]
[Black "Birkisson, Bardur Orn"]
[Result "1-0"]
[ECO "E61"]
[WhiteElo "2459"]
[BlackElo "2169"]
[Annotator "TA"]
[PlyCount "75"]
[EventDate "2024.04.16"]
[EventType "tourn"]
[EventCountry "ISL"]
[SourceTitle "playchess.com"]
[Source "ChessBase"]
[SourceQuality "1"]
[TimeControl "40/5400+30:1800+30"]

{[%evp 16,75,29,-8,14,0,14,-5,-12,-26,0,-20,10,0,0,0,13,12,43,54,47,50,50,54,111,102,170,83,233,39,286,278,306,302,452,456,545,535,560,558,629,640,622,593,608,608,643,645,856,845,853,827,1026,1034,1937,1828,2522,1467,2909,1755,29991,29992]} 1. c4 {[%emt 0:00:01]} e5 {[%emt 0:00:44]} 2. Nc3 {[%emt 0:00:09]} Nf6 {[%emt 0:00:14]} 3. e3 {[%emt 0:00:08]} d6 {[%emt 0:10:47]} 4. Nf3 {[%emt 0:02:23]} Nbd7 {[%emt 0:02:07]} 5. d4 {[%emt 0:00:41]} g6 {[%emt 0:00:57]} 6. Be2 {[%emt 0:02:26]} Bg7 {[%emt 0:00:33]} 7. O-O {[%emt 0:03:24]} O-O {[%emt 0:04:06]} 8. Qc2 {[%emt 0:00:04]} Re8 {[%emt 0:14:21]} 9. b4 {[%emt 0:00:18]} c6 {[%emt 0:03:07]} 10. a4 {[%emt 0:07:37]} exd4 {[%emt 0:09:00]} 11. exd4 {[%emt 0:03:46]} d5 {[%emt 0:02:59] The position is equal.} 12. c5 {[%emt 0:13:54]} Nf8 {[%emt 0:11:03]} 13. Bd3 {[%emt 0:00:42]} Ne6 {[%emt 0:03:59]} 14. Rd1 {[%emt 0:01:42]} Qc7 {[%emt 0:05:03] Hoping for ...Ng4.} 15. Ne2 {[%emt 0:05:44]} Ne4 {[%emt 0:03:02]} 16. Be3 {[%emt 0:07:23]} Bd7 {[%emt 0:04:21]} 17. Rab1 {[%emt 0:01:17]} b6 {[%emt 0:02:34]} 18. Rdc1 {[%emt 0:05:14]} f5 {[%emt 0:03:18]} 19. g3 {[%emt 0:15:56]} Rf8 {[%emt 0:02:55]} (19... bxc5 $14 20. dxc5 (20. bxc5 g5 $14) 20... Rac8) 20. Nf4 {[%emt 0:02:47]} Rae8 {[%emt 0:03:03] [#]} (20... bxc5 $16 21. dxc5 Nd8) 21. h4 {[%emt 0:04:08]} (21. cxb6 $1 $18 {is more deadly.} axb6 22. b5) 21... Nd8 {[%emt 0:09:33] [#]} (21... bxc5 $16 {was called for.} 22. bxc5 Bc8) 22. Kg2 $2 {[%emt 0:02:11]} (22. cxb6 $1 $18 axb6 23. b5) 22... Nf7 $2 {[%emt 0:00:30]} (22... bxc5 $1 $14 23. dxc5 (23. bxc5 Nf7 $16) 23... Nc3) 23. cxb6 $18 {[%emt 0:04:12]} axb6 {[%emt 0:01:53]} 24. b5 {[%emt 0:00:41]} c5 {[%emt 0:00:48]} (24... Rc8 {is a better defense.} 25. bxc6 Qxc6 26. Qxc6 Rxc6 27. Rxc6 (27. Nxd5 Rxc1 28. Rxc1 Bxa4 $18) 27... Bxc6 28. Rxb6 Bxa4 29. Nxd5 Rd8) 25. dxc5 {[%emt 0:00:29]} ({Don't do} 25. Nxd5 Qd6 $18) 25... bxc5 {[%emt 0:00:36]} 26. Bxc5 {[%emt 0:00:30]} Nxc5 {[%emt 0:00:15]} 27. Qxc5 {[%emt 0:00:03]} Qa5 {[%emt 0:00:42]} 28. Qxd5 {[%emt 0:01:31]} Bc8 {[%emt 0:00:12]} 29. Qb3 {[%emt 0:01:59]} Bb7 {[%emt 0:00:45]} 30. Bc4 {[%emt 0:00:12]} Re7 {[%emt 0:01:08][%cal Be8e7,Be7b7,Bb7b8][%mdl 32]} 31. Bd5 {[%emt 0:01:27]} Ra8 {[%emt 0:00:26]} 32. Bxb7 {[%emt 0:00:30]} Rxb7 {[%emt 0:00:07]} 33. Rc4 {[%emt 0:00:15]} Kh8 {[%emt 0:00:40]} 34. Rbc1 {[%emt 0:00:13]} Rbb8 {[%emt 0:01:01] Dodges Rc8+} 35. Rc7 {[%emt 0:00:08]} Nd6 {[%emt 0:00:19]} 36. Ne6 {[%emt 0:00:27]} Bf6 {[%emt 0:00:21]} 37. Nfg5 {[%emt 0:00:23]} Qxa4 {[%emt 0:00:54]} 38. Qd5 {[%emt 0:00:26] Weighted Error Value: White=0.24 (precise) /Black=0.58.  Loses game:     	---       	Black=1      Missed win:     	White=1     	---        Mistake:       	White=1     	Black=4      Inaccurate:     	---       	Black=3      OK:         	White=9     	Black=2} 1-0

[Event "Icelandic Championship 2024"]
[Site "Mosfellsbaer"]
[Date "2024.04.20"]
[Round "5.1"]
[White "Birkisson, Bardur Orn"]
[Black "Steingrimsson, Hedinn"]
[Result "0-1"]
[ECO "B51"]
[WhiteElo "2169"]
[BlackElo "2502"]
[Annotator "TA"]
[PlyCount "80"]
[EventDate "2024.04.16"]
[EventType "tourn"]
[EventCountry "ISL"]
[SourceTitle "playchess.com"]
[Source "ChessBase"]
[SourceQuality "1"]
[TimeControl "40/5400+30:1800+30"]

{[%evp 9,80,24,28,34,26,34,38,29,31,35,43,33,43,11,35,19,89,0,11,4,13,13,15,4,22,0,6,0,0,-18,0,-78,-72,-122,-114,-107,-86,-86,-94,-92,0,-30,-8,-64,-52,-40,-47,-88,-55,-96,-98,-116,-83,-85,-94,-97,-151,-106,-90,-184,-162,-363,-330,-708,-687,-698,-748,-798,-777,-1627,-1589,-1606,-1541]} 1. e4 {[%emt 0:00:08]} c5 {[%emt 0:05:24]} 2. Nf3 {[%emt 0:00:19]} d6 {[%emt 0:00:01]} 3. Bb5+ {[%emt 0:00:35]} Nd7 {[%emt 0:00:17]} 4. a4 {[%emt 0:01:04][%cal Ba2a4,Ba4a5][%mdl 32]} Ngf6 {[%emt 0:00:56]} 5. Nc3 {[%emt 0:00:37]} g6 {[%emt 0:02:44]} 6. a5 {[%emt 0:03:52]} Bg7 {[%emt 0:00:27]} 7. O-O {[%emt 0:01:48]} a6 {[%emt 0:00:24]} 8. Be2 {[%emt 0:01:45] White is slightly better.} O-O {[%emt 0:09:52]} 9. d3 {[%emt 0:02:42]} b5 {[%emt 0:02:15]} 10. axb6 {[%emt 0:00:18]} Nxb6 {[%emt 0:00:53]} 11. Qd2 {[%emt 0:09:44]} e5 {[%emt 0:08:22]} 12. Qg5 {[%emt 0:12:42]} Qe8 {[%emt 0:06:52]} (12... Qc7 $11) 13. Qh4 {[%emt 0:04:55]} (13. Nd2 $16) 13... Nh5 $1 $11 {[%emt 0:03:39]} 14. Ne1 {[%emt 0:20:19]} Bf6 $1 {[%emt 0:00:18]} 15. Bg5 {[%emt 0:03:29]} Bxg5 {[%emt 0:00:02]} 16. Qxg5 {[%emt 0:00:12]} Nf4 {[%emt 0:00:03]} 17. Bf3 {[%emt 0:06:24]} Ra7 {[%emt 0:02:55]} 18. Ne2 {[%emt 0:06:21]} (18. Qf6 {is more complex.} Qe6 19. Qxe6 Nxe6 20. Nb5) 18... Ne6 $36 {[%emt 0:00:41][%mdl 2048] Black is more active.} 19. Qg3 {[%emt 0:01:41]} Kh8 {[%emt 0:00:34]} 20. c3 {[%emt 0:00:57]} (20. Qh4 $11 {keeps the balance.}) 20... f5 $17 {[%emt 0:02:57]} 21. d4 {[%emt 0:02:40]} f4 {[%emt 0:10:22]} 22. Qh4 {[%emt 0:00:37]} cxd4 {[%emt 0:04:41]} 23. cxd4 {[%emt 0:00:37]} h5 {[%emt 0:00:16] And now ...Rh7 would win.} 24. d5 {[%emt 0:09:35]} Nd8 {[%emt 0:00:07]} ({Black should try} 24... Nc5 $17 {Threatens to win with ...Nc4.} 25. Nc1 Rg7) 25. Nc3 {[%emt 0:03:05]} Nc4 {[%emt 0:02:55][%cal Bb6c4,Bc4b2,Bb2a4,Ba4c5,Bc5b3,Bb3d4][%mdl 32]} 26. Nb1 {[%emt 0:05:01] Against Nd2} ({Better is} 26. Rc1 $11) 26... Nxb2 {[%emt 0:04:25]} 27. Be2 {[%emt 0:00:18]} Na4 {[%emt 0:00:18]} 28. f3 {[%emt 0:01:20]} Nc5 {[%emt 0:01:13]} 29. Na3 {[%emt 0:00:51]} Rg7 {[%emt 0:00:47]} 30. Qf2 {[%emt 0:00:35]} g5 {[%emt 0:05:32] Black is more active.} 31. Nc4 {[%emt 0:00:09] [#]} Qe7 {[%emt 0:00:02]} 32. Nb6 {[%emt 0:01:03]} Bb7 {[%emt 0:00:14]} 33. Nd3 {[%emt 0:00:29]} Nb3 {[%emt 0:00:12]} 34. Ra3 {[%emt 0:00:29]} (34. Ra4 $17) 34... Nd4 $19 {[%emt 0:00:02]} 35. h3 $2 {[%emt 0:00:40]} (35. Ra4 {might work better.}) 35... Nf7 {[%emt 0:01:28][%cal Og5g4] Strongly threatening ...g4!} 36. Rc1 $2 {[%emt 0:00:11] [#]} (36. Ra4 g4 37. hxg4 Nxe2+ (37... hxg4 $2 38. fxg4 Nxe2+ 39. Qxe2 $19) 38. Qxe2 hxg4 39. fxg4) 36... g4 $1 {[%emt 0:01:15][%mdl 512] Black is clearly winning.} 37. hxg4 {[%emt 0:00:54]} (37. Ne1 gxh3) 37... hxg4 {[%emt 0:00:02]} 38. fxg4 {[%emt 0:00:26]} Ng5 {[%emt 0:00:03]} 39. Ne1 {[%emt 0:00:28]} Nxe4 {[%emt 0:00:38]} 40. Rh3+ {[%emt 0:00:26]} Kg8 {[%emt 0:00:31] Weighted Error Value: White=0.58/Black=0.10 (very precise) .  Mistake:       	White=7     	Black=2      Inaccurate:     	White=4     	Black=1      OK:         	White=7     	Black=11     Best:        	White=3     	Black=2      Strong:       	---       	Black=2      Brilliant:      	---       	Black=1} 0-1

[Event "Icelandic Championship 2024"]
[Site "Mosfellsbaer"]
[Date "2024.04.20"]
[Round "5.2"]
[White "Ptacnikova, Lenka"]
[Black "Stefansson, Vignir Vatnar"]
[Result "1/2-1/2"]
[ECO "A80"]
[WhiteElo "2127"]
[BlackElo "2459"]
[Annotator "TA"]
[PlyCount "78"]
[EventDate "2024.04.16"]
[EventType "tourn"]
[EventCountry "ISL"]
[SourceTitle "playchess.com"]
[Source "ChessBase"]
[SourceQuality "1"]
[TimeControl "40/5400+30:1800+30"]

{[%evp 9,78,-12,7,0,0,0,27,16,9,17,17,0,0,-5,0,-12,0,0,0,-38,-21,-65,0,-79,-95,-108,-111,-103,-33,-56,-48,-71,-64,-67,50,55,119,119,120,119,120,119,127,119,134,119,119,119,127,120,120,120,120,120,120,0,120,127,128,0,131,0,107,0,289,0,225,0,405,224,290]} 1. d4 {[%emt 0:00:01]} f5 {[%emt 0:03:08]} 2. Nc3 {[%emt 0:00:43]} Nf6 {[%emt 0:00:09]} 3. Bg5 {[%emt 0:00:10]} d5 {[%emt 0:00:15]} 4. e3 {[%emt 0:02:16]} e6 {[%emt 0:00:30]} 5. Bxf6 {[%emt 0:07:57]} Qxf6 {[%emt 0:00:42]} 6. Nb5 {[%emt 0:04:07]} Qd8 {[%emt 0:15:11]} 7. c4 {[%emt 0:01:49]} Be7 {[%emt 0:01:51]} 8. Nf3 {[%emt 0:11:19] White has an edge.} c6 {[%emt 0:00:57]} 9. Nc3 {[%emt 0:00:07]} Nd7 {[%emt 0:00:46]} 10. Be2 {[%emt 0:04:58]} Bd6 {[%emt 0:00:31]} 11. Qc2 {[%emt 0:08:47]} O-O {[%emt 0:02:26]} 12. g3 {[%emt 0:01:02]} a6 {[%emt 0:09:05]} 13. c5 {[%emt 0:04:51]} Bc7 {[%emt 0:00:33]} 14. b4 {[%emt 0:00:05]} Qf6 {[%emt 0:00:59]} 15. a4 {[%emt 0:04:56]} g5 {[%emt 0:00:16]} (15... e5 $15) 16. h4 {[%emt 0:02:44]} (16. Rd1 $11) 16... g4 $17 {[%emt 0:01:42]} 17. Nd2 {[%emt 0:00:06]} e5 {[%emt 0:00:07]} 18. Nb3 {[%emt 0:01:27]} Qg7 {[%emt 0:07:11]} (18... f4 $17 {aiming for ...fxg3.} 19. O-O-O fxe3 20. fxe3 e4) 19. O-O-O {[%emt 0:02:38]} Nf6 {[%emt 0:03:16]} 20. Bd3 {[%emt 0:08:39]} Ne4 {[%emt 0:09:28]} 21. Bxe4 {[%emt 0:04:29]} dxe4 {[%emt 0:01:28]} (21... fxe4 $15 22. Rh2 Bd7) 22. d5 $14 {[%emt 0:02:18][%cal Bd4d5,Bd5d6][%mdl 32]} Bd7 {[%emt 0:02:11]} ({Black should play} 22... Bd8 $1 $14) 23. d6 $16 {[%emt 0:01:07]} Bd8 {[%emt 0:00:03]} 24. a5 {[%emt 0:02:14] White is more active.} Be6 {[%emt 0:00:09]} 25. Nd2 {[%emt 0:00:37]} Qg6 {[%emt 0:00:19]} 26. Rhe1 {[%emt 0:00:53]} Rf7 {[%emt 0:00:18]} 27. Kb2 {[%emt 0:01:01]} Bf6 {[%emt 0:00:06][%cal Bd8f6,Bf6g7,Bg7h6][%mdl 32]} 28. Ka3 {[%emt 0:00:09]} Raf8 {[%emt 0:00:22]} 29. Qb2 {[%emt 0:01:03]} Bg7 {[%emt 0:00:27]} 30. Re2 {[%emt 0:00:53]} Bh6 {[%emt 0:00:56]} 31. Rde1 {[%emt 0:01:15]} Qf6 {[%emt 0:00:07]} 32. Rd1 {[%emt 0:02:20]} (32. Rh1 $16) 32... Rd8 {[%emt 0:00:06]} (32... Qg6 $1 $11 {keeps the balance.}) 33. Qc2 {[%emt 0:01:03]} Kf8 {[%emt 0:00:05]} 34. Qb2 {[%emt 0:00:26]} (34. Na4 $16) 34... Ke8 {[%emt 0:02:00]} (34... Kg8 $1 $11 {remains equal.}) 35. Qc2 {[%emt 0:00:17]} (35. Na4 $16) 35... Kd7 {[%emt 0:00:04]} (35... Kf8 $11) 36. Qb2 {[%emt 0:00:08]} (36. Na4 $16) 36... Rdf8 $2 {[%emt 0:00:50][%mdl 8192] [#]} (36... Ke8 $1 $11 {and Black stays safe.}) 37. Qc2 $2 {[%emt 0:00:25]} ({Resist} 37. Na4 $6 Rd8 38. Nb6+ Ke8 $18) (37. b5 $1 $18 {[%cal Rb5c6]} axb5 38. Nxb5) 37... Rg7 $2 {[%emt 0:00:05]} (37... Rd8 $1 $11) 38. Qb2 $2 {[%emt 0:00:18]} (38. Na4 $18) 38... Bf7 $2 {[%emt 0:00:05][%mdl 8192]} (38... Rgf7 $11 {and Black has nothing to worry.}) 39. Na4 {[%emt 0:01:57]} (39. b5 $142 axb5 40. Nxb5) 39... Kd8 {[%emt 0:04:27][%mdl 32768] Weighted Error Value: White=0.50/Black=0.60.  Loses game:     	---       	Black=3      Missed win:     	White=2     	---        Mistake:       	White=6     	Black=7      Inaccurate:     	White=2     	Black=1      OK:         	White=11    	Black=6      Best:        	White=2     	Black=1     . An unexpected result.} 1/2-1/2